bitfinex/quotes_BTCUSD_20251212
["timestamp","ask_amount","ask_price","bid_price","bid_amount"]
[1765556467489,0.01111308,89984.0,89981.0,0.0178]
[1765556467699,0.01111271,89987.0,89981.0,0.0178]
[1765556467910,0.01111296,89985.0,89982.0,0.06793]
[1765556468156,0.22223938,89994.0,89982.0,0.06793]
[1765556468157,0.01111222,89991.0,89986.0,0.05955283]
[1765556468370,0.01111222,89991.0,89982.0,0.06793]
[1765556468371,0.01111296,89985.0,89982.0,0.06793]
[1765556468593,0.00337,89983.0,89981.0,0.00011651]
[1765556468815,0.55948582,89982.0,89981.0,0.00211651]
[1765556469028,1.55948582,89982.0,89981.0,0.00111651]
[1765556469239,1.56285582,89982.0,89981.0,0.00111651]
[1765556469687,1.51970667,89982.0,89981.0,0.00111651]
[1765556469903,1.56285582,89982.0,89981.0,0.00011651]
[1765556470124,0.51301856,89961.0,89960.0,0.0002]
[1765556470368,0.2907,89961.0,89960.0,0.00058786]
[1765556470583,0.01111568,89963.0,89960.0,0.00058786]
[1765556470867,0.023708,89970.0,89962.0,0.04844]
[1765556471082,0.02369444,89974.0,89971.0,0.01111469]
[1765556471301,0.05878629,89990.0,89980.0,0.22227161]
[1765556471302,0.002,89982.0,89980.0,0.22227161]
[1765556471727,0.01111308,89984.0,89981.0,0.153]
[1765556471948,0.01111345,89981.0,89975.0,0.03663]
[1765556472169,0.01111321,89983.0,89981.0,0.0178]
[1765556472389,0.01111308,89984.0,89981.0,0.0178]
[1765556472605,0.23337565,89984.0,89981.0,0.0178]
[1765556472828,0.01111345,89981.0,89976.0,0.01111407]
[1765556473034,0.01111345,89981.0,89980.0,0.0178]
[1765556473246,0.01111345,89981.0,89980.0,0.01893949]
[1765556473468,1.15759376,89981.0,89980.0,0.00113949]
[1765556473681,1.39752376,89981.0,89980.0,0.00113949]
[1765556473905,1.49144291,89981.0,89980.0,0.00113949]
[1765556474778,1.49744291,89981.0,89980.0,0.00113949]
[1765556474982,1.40634631,89981.0,89980.0,0.00113949]
[1765556475188,1.44949546,89981.0,89980.0,0.00113949]
[1765556475440,1.44649546,89981.0,89980.0,0.00113949]
[1765556475920,0.01111568,89963.0,89950.0,0.0002]
[1765556476137,0.22231856,89961.0,89953.0,0.02891691]
[1765556476356,0.22231856,89961.0,89954.0,0.01111679]
[1765556476583,0.23343057,89963.0,89955.0,0.01111666]
[1765556476801,0.23343057,89963.0,89953.0,0.0178]
[1765556477018,0.23343057,89963.0,89950.0,0.0002]
[1765556477262,0.33684455,89963.0,89950.0,0.0002]
[1765556477487,0.08929915,89961.0,89950.0,0.0002]
[1765556477719,1.37999915,89961.0,89950.0,0.0002]
[1765556477972,0.22234327,89951.0,89950.0,0.0002]
[1765556478187,0.22234327,89951.0,89950.0,0.00031662]
[1765556478188,1.60284242,89951.0,89950.0,0.00031662]
[1765556478435,1.60284242,89951.0,89950.0,0.00011662]
[1765556478436,1.65361242,89951.0,89950.0,0.00011662]
[1765556479083,1.55621467,89942.0,89940.0,0.0002]
[1765556479308,1.62825467,89942.0,89940.0,0.0002]
[1765556479531,1.67902467,89942.0,89940.0,0.0002]
[1765556479759,1.58510552,89942.0,89940.0,0.0002]
[1765556479999,0.36176552,89942.0,89941.0,0.55002]
[1765556480281,0.22236552,89942.0,89941.0,0.5]
[1765556480749,0.22336552,89942.0,89941.0,0.5]
[1765556480962,0.001,89942.0,89941.0,0.5]
[1765556481179,0.04314915,89944.0,89941.0,0.73348603]
[1765556481396,0.01111753,89948.0,89941.0,0.77058894]
[1765556481620,0.20009513,89945.0,89942.0,0.0178]
[1765556481876,0.22234926,89949.0,89947.0,0.04606013]
[1765556482086,0.01111728,89950.0,89947.0,0.04507]
[1765556482329,0.01111728,89950.0,89944.0,0.03657]
[1765556482330,0.23347195,89947.0,89944.0,0.03657]
[1765556482544,0.23347195,89947.0,89942.0,0.0178]
[1765556482545,0.05426717,89944.0,89942.0,0.0178]
[1765556482755,0.05426717,89944.0,89941.0,0.48406533]
[1765556482756,0.26855305,89943.0,89941.0,0.48306533]
[1765556482977,1.07158,89942.0,89941.0,0.46660291]
[1765556483199,1.45781201,89942.0,89941.0,0.46660291]
[1765556483413,1.00161286,89942.0,89941.0,0.46660291]
[1765556483687,0.02939314,89983.0,89960.0,0.01111605]
[1765556483896,0.01059139,89983.0,89975.0,0.01111419]
[1765556484115,0.01311448,89983.0,89977.0,0.01111395]
[1765556484346,0.00200127,89983.0,89980.0,0.01111358]
[1765556484569,0.00200127,89983.0,89982.0,0.04507]
[1765556484803,0.00038841,89983.0,89982.0,0.04507]
[1765556485007,0.00038841,89983.0,89982.0,0.15329832]
[1765556485390,0.00038841,89983.0,89982.0,0.11557]
[1765556485594,0.00038841,89983.0,89978.0,0.01111382]
[1765556485595,0.22227658,89978.0,89976.0,0.03657]
[1765556485797,0.22227658,89978.0,89969.0,0.01111493]
[1765556485798,0.01111444,89973.0,89969.0,0.01111493]
[1765556485960,0.01111444,89973.0,89970.0,0.0178]
[1765556485961,0.00161286,89973.0,89970.0,0.0178]
[1765556486170,0.00161286,89973.0,89961.0,0.0705]
[1765556486171,0.22229734,89970.0,89959.0,0.25889331]
[1765556486383,0.02831672,89973.0,89960.0,0.02891605]
[1765556486384,0.01111555,89964.0,89960.0,0.02891605]
[1765556486677,0.01111493,89969.0,89962.0,0.0111158]
[1765556486896,0.01111543,89965.0,89960.0,0.0178]
[1765556487131,0.01111642,89957.0,89954.0,0.03657]
[1765556487373,0.01111666,89955.0,89951.0,0.01111716]
[1765556487595,0.06857,89979.0,89943.0,0.0178]
[1765556487596,0.01111765,89947.0,89943.0,0.0178]
[1765556487810,0.04314915,89942.0,89941.0,0.46660291]
[1765556488025,0.04314915,89942.0,89941.0,0.48440291]
[1765556488244,0.04314915,89942.0,89941.0,0.46660291]
[1765556488487,0.22236552,89942.0,89941.0,0.46660291]
[1765556488977,0.04314915,89943.0,89941.0,0.46660291]
[1765556489233,0.01111778,89946.0,89941.0,0.46660291]
[1765556489480,0.33384915,89949.0,89946.0,0.01111778]
[1765556489694,0.05426717,89944.0,89941.0,0.46660291]
[1765556489907,0.01111753,89948.0,89942.0,0.12941046]
[1765556490132,0.22230867,89965.0,89948.0,0.04507]
[1765556490352,0.01111506,89968.0,89965.0,0.01111543]
[1765556490570,0.01111493,89969.0,89964.0,0.04507]
[1765556490800,0.0127273,89973.0,89963.0,0.01111568]
[1765556491023,0.01111469,89971.0,89967.0,0.01111518]
[1765556491298,0.01111531,89966.0,89956.0,0.01111654]
[1765556491508,0.01111691,89953.0,89946.0,0.01111778]
[1765556491710,0.23345966,89952.0,89946.0,0.01111778]
[1765556491940,0.001,89968.0,89961.0,0.01111592]
[1765556492158,0.01111481,89970.0,89960.0,0.0705]
[1765556492383,0.01111531,89966.0,89960.0,0.0705]
[1765556492610,0.01111531,89966.0,89959.0,0.01111617]
[1765556492611,0.01111382,89978.0,89970.0,0.2222949]
[1765556492816,0.01021285,89978.0,89975.0,0.01111419]
[1765556493041,0.01060103,89978.0,89975.0,0.01111419]
[1765556493261,0.01111407,89976.0,89972.0,0.23340593]
[1765556493484,0.00038818,89978.0,89975.0,0.23339815]
[1765556493701,0.00038818,89978.0,89977.0,0.04507]
[1765556493944,0.00038818,89978.0,89977.0,0.11557]
[1765556494157,0.00238818,89978.0,89977.0,0.11557]
[1765556494386,0.00238818,89978.0,89977.0,0.45628839]
[1765556494600,0.00038818,89978.0,89977.0,0.08164]
[1765556494811,0.00038818,89978.0,89977.0,0.15214]
[1765556495038,0.00038818,89978.0,89977.0,0.03757]
[1765556495266,0.00038818,89978.0,89977.0,0.15314]
[1765556495976,0.00238818,89978.0,89977.0,0.15314]
[1765556496212,0.00238818,89978.0,89977.0,0.15214]
[1765556496436,0.00238818,89978.0,89977.0,0.03757]
[1765556496655,0.00238818,89978.0,89977.0,0.001]
[1765556496868,0.00238818,89978.0,89977.0,0.03757]
[1765556497108,0.22228396,89975.0,89970.0,0.0705]
[1765556497309,0.00038818,89978.0,89970.0,0.0705]
[1765556497310,0.00038818,89978.0,89977.0,0.37641902]
[1765556497527,0.01111074,90003.0,89998.0,0.22222576]
[1765556497741,0.01111098,90001.0,89997.0,0.01111148]
[1765556497975,0.01111148,89997.0,89993.0,0.01111197]
[1765556498187,0.01023697,89998.0,89996.0,0.0111116]
[1765556498411,0.01111111,90000.0,89995.0,0.01111172]
[1765556498412,0.01035907,89999.0,89995.0,0.01111172]
[1765556498642,0.01111148,89997.0,89994.0,0.0705]
[1765556498902,0.01111197,89993.0,89989.0,0.25116128]
[1765556499145,0.01111197,89993.0,89989.0,0.0178]
[1765556499146,0.23335551,89992.0,89989.0,0.0178]
[1765556499321,0.22224691,89990.0,89989.0,0.0178]
[1765556499512,0.2324896,89990.0,89989.0,0.0178]
[1765556500444,0.2324896,89990.0,89977.0,0.03657]
[1765556500445,0.23338667,89980.0,89977.0,0.03657]
[1765556500663,0.01111333,89982.0,89978.0,0.01111382]
[1765556500826,0.01111308,89984.0,89982.0,0.04507]
[1765556501036,0.01111308,89984.0,89983.0,0.04507]
[1765556501269,0.01111308,89984.0,89978.0,0.0705]
[1765556501270,0.01111345,89981.0,89978.0,0.0705]
[1765556501474,0.01111321,89983.0,89979.0,0.03696216]
[1765556501684,0.01111308,89984.0,89979.0,0.0111137]
[1765556501891,0.01111358,89980.0,89977.0,0.04768395]
[1765556502091,0.01111358,89980.0,89977.0,0.03657]
[1765556502306,0.01111419,89975.0,89972.0,0.01803997]
[1765556502521,0.2222889,89973.0,89972.0,0.00023997]
[1765556502733,0.29003805,89973.0,89972.0,0.00023997]
[1765556502945,0.300282,89973.0,89972.0,0.00023997]
[1765556503161,1.590982,89973.0,89972.0,0.00023997]
[1765556503378,1.70148962,89973.0,89972.0,0.00023997]
[1765556503594,1.79766962,89973.0,89972.0,0.00023997]
[1765556503840,1.82126065,89973.0,89972.0,0.00023997]
[1765556504040,1.71075303,89973.0,89972.0,0.00023997]
[1765556504446,1.71259303,89973.0,89972.0,0.00023997]
[1765556504646,1.71459303,89973.0,89972.0,0.00023997]
[1765556504867,1.71259303,89973.0,89972.0,0.00023997]
[1765556505427,0.01111802,89944.0,89939.0,0.03657]
[1765556505732,0.26551467,89942.0,89929.0,0.31069717]
[1765556506102,0.26551467,89942.0,89931.0,0.01111963]
[1765556506238,0.26551467,89942.0,89933.0,0.01111938]
[1765556506437,0.26551467,89942.0,89929.0,0.0883]
[1765556506691,0.26551467,89942.0,89929.0,0.0178]
[1765556506891,1.26551467,89942.0,89941.0,0.46760291]
[1765556507301,1.34310255,89942.0,89941.0,0.46760291]
[1765556507558,1.7725117,89942.0,89941.0,0.46760291]
[1765556507776,1.56948493,89942.0,89941.0,0.46760291]
[1765556507990,1.52329493,89942.0,89941.0,0.46860291]
[1765556508202,1.56644408,89942.0,89941.0,0.46760291]
[1765556508624,1.56644408,89942.0,89941.0,0.46860291]
[1765556508851,0.02939314,89962.0,89951.0,0.01111716]
[1765556509059,0.01111493,89969.0,89961.0,0.05618592]
[1765556509311,0.01111654,89956.0,89953.0,0.02223383]
[1765556509526,1.04619,89942.0,89941.0,0.44005979]
[1765556509737,1.60401753,89942.0,89941.0,0.43805979]
[1765556509952,1.66833515,89942.0,89941.0,0.43805979]
[1765556510159,1.60294753,89942.0,89941.0,0.43805979]
[1765556510371,1.60494753,89942.0,89941.0,0.43805979]
[1765556510602,1.67136753,89942.0,89941.0,0.43805979]
[1765556510813,1.77039474,89942.0,89941.0,0.43844797]
[1765556511028,1.78239474,89942.0,89941.0,0.43944797]
[1765556511233,1.67736753,89942.0,89941.0,0.43944797]
[1765556511669,1.67936753,89942.0,89941.0,0.43944797]
[1765556511884,1.67736753,89942.0,89941.0,0.43944797]
[1765556512084,1.72138592,89942.0,89941.0,0.43844797]
[1765556512367,1.72338592,89942.0,89941.0,0.43844797]
[1765556512582,0.5562666,89921.0,89900.0,0.0002]
[1765556512786,0.5562666,89921.0,89920.0,0.00031669]
[1765556513225,0.5562666,89921.0,89920.0,0.04741669]
[1765556513445,0.25,89940.0,89920.0,0.04741669]
[1765556513446,0.00861286,89942.0,89920.0,0.08766669]
[1765556513656,0.01111963,89931.0,89925.0,0.01112037]
[1765556513866,0.01111963,89931.0,89927.0,0.01112013]
[1765556514080,0.01112037,89925.0,89921.0,0.01507895]
[1765556514289,0.23353443,89923.0,89920.0,0.01815669]
[1765556514502,0.01112062,89923.0,89920.0,0.08766669]
[1765556514708,0.01112037,89925.0,89921.0,0.01112087]
[1765556514910,0.23353553,89923.0,89920.0,0.01815669]
[1765556515112,0.04314915,89921.0,89920.0,0.01815669]
[1765556515519,0.23353553,89923.0,89920.0,0.01815669]
[1765556515737,0.08826915,89921.0,89920.0,0.00031669]
[1765556515945,0.04314915,89921.0,89920.0,0.00031669]
[1765556516361,0.15668915,89921.0,89920.0,0.00031669]
[1765556516570,0.15668915,89921.0,89920.0,0.00131669]
[1765556516571,0.62282,89921.0,89920.0,0.00131669]
[1765556516779,0.76075006,89921.0,89920.0,0.00287743]
[1765556516983,0.82917006,89921.0,89920.0,0.00387743]
[1765556517189,0.82917006,89921.0,89920.0,0.00187743]
[1765556517393,1.54217006,89921.0,89920.0,0.00187743]
[1765556517712,1.44838915,89921.0,89920.0,0.00187743]
[1765556518228,0.01112384,89897.0,89894.0,0.02896421]
[1765556518432,0.01112384,89897.0,89894.0,0.02908099]
[1765556518598,0.01112384,89897.0,89894.0,0.00011678]
[1765556519044,0.01112384,89897.0,89894.0,0.06962678]
[1765556519497,0.01112371,89898.0,89895.0,0.0145274]
[1765556519702,0.04314915,89895.0,89894.0,0.00011678]
[1765556519921,0.01112384,89897.0,89894.0,0.00311678]
[1765556520141,0.01112309,89903.0,89894.0,0.00311678]
[1765556520359,0.01112272,89906.0,89894.0,0.00011678]
[1765556520602,0.02939314,89948.0,89894.0,0.00011678]
[1765556520603,0.04314915,89914.0,89908.0,0.01112248]
[1765556520806,0.04314915,89914.0,89896.0,0.5791291]
[1765556520807,0.01111975,89930.0,89922.0,0.01112074]
[1765556521042,0.01111926,89934.0,89925.0,0.01112037]
[1765556521251,0.01111926,89934.0,89923.0,0.02669]
[1765556521252,0.01111852,89940.0,89923.0,0.04057965]
[1765556521469,0.01111877,89938.0,89932.0,0.01111951]
[1765556521778,0.01111889,89937.0,89928.0,0.01112]
[1765556521975,0.01112037,89925.0,89918.0,0.01112124]
[1765556522189,0.01112037,89925.0,89914.0,0.02669]
[1765556522190,0.22241003,89924.0,89914.0,0.24912458]
[1765556522412,0.01112124,89918.0,89914.0,0.02669]
[1765556522640,0.0111226,89907.0,89900.0,0.5791291]
[1765556522855,0.01112285,89905.0,89902.0,0.01795678]
[1765556523070,0.0111226,89907.0,89902.0,0.00011678]
[1765556523291,0.01112285,89905.0,89902.0,0.00011678]
[1765556523542,0.22245951,89904.0,89902.0,0.00011678]
[1765556523747,0.01112285,89905.0,89902.0,0.00011678]
[1765556523988,0.04314915,89912.0,89902.0,0.00011678]
[1765556523989,0.04314915,89920.0,89915.0,0.01112161]
[1765556524225,0.01111877,89938.0,89935.0,0.01111914]
[1765556524456,0.01111926,89934.0,89930.0,0.01111975]
[1765556524667,0.22237788,89937.0,89922.0,0.01112074]
[1765556524871,0.22239766,89929.0,89922.0,0.01112074]
[1765556525117,0.22239766,89929.0,89918.0,0.22242311]
[1765556525118,0.01112062,89923.0,89917.0,0.03781136]
[1765556525315,0.0111205,89924.0,89921.0,0.01112087]
[1765556525527,0.01112025,89926.0,89920.0,0.01112099]
[1765556525737,0.01112025,89926.0,89922.0,0.01112074]
[1765556525969,0.23352129,89928.0,89921.0,0.01112087]
[1765556526180,0.01111926,89934.0,89917.0,0.02669]
[1765556526383,0.22239157,89932.0,89919.0,0.01112112]
[1765556526595,0.001,89924.0,89922.0,0.01112074]
[1765556526818,0.001,89924.0,89923.0,0.2224125]
[1765556527025,0.23351519,89930.0,89923.0,0.12773062]
[1765556527026,0.01112013,89927.0,89923.0,0.12773062]
[1765556527234,0.01112013,89927.0,89919.0,0.01112112]
[1765556527235,0.01112037,89925.0,89921.0,0.01112087]
[1765556527468,0.01112025,89926.0,89922.0,0.01112074]
[1765556527672,0.22240756,89925.0,89920.0,0.01112099]
[1765556527872,0.22240756,89925.0,89919.0,0.01112112]
[1765556528128,0.01112074,89922.0,89917.0,0.02669]
[1765556528338,0.01111988,89929.0,89925.0,0.01112037]
[1765556528535,0.0111205,89924.0,89919.0,0.5791291]
[1765556528779,0.22237098,89940.0,89911.0,0.02669]
[1765556528780,0.01111988,89929.0,89922.0,0.01112074]
[1765556529001,0.01273175,89937.0,89934.0,0.01111926]
[1765556529209,0.01273175,89937.0,89931.0,0.01111963]
[1765556529210,0.01111914,89935.0,89931.0,0.01111963]
[1765556529473,0.01112,89928.0,89924.0,0.0111205]
[1765556529886,0.01112013,89927.0,89924.0,0.0111205]
[1765556530141,0.01112025,89926.0,89918.0,0.5791291]
[1765556530368,0.5582325,89923.0,89911.0,0.0111221]
[1765556530581,0.66980165,89923.0,89909.0,0.01112235]
[1765556530827,0.66980165,89923.0,89900.0,0.01112347]
[1765556530828,1.66980165,89923.0,89900.0,0.01112347]
[1765556531018,1.66980165,89923.0,89900.0,0.59025257]
[1765556531248,1.66980165,89923.0,89897.0,0.22247559]
[1765556531249,0.5131125,89923.0,89906.0,0.01112272]
[1765556531460,0.5131125,89923.0,89910.0,0.5791291]
[1765556531665,0.5141125,89923.0,89915.0,0.02675]
[1765556531917,0.001,89923.0,89918.0,0.01112124]
[1765556532124,0.001,89923.0,89920.0,0.01112099]
[1765556532337,0.002,89923.0,89922.0,0.02949409]
[1765556532557,0.002,89923.0,89922.0,0.11672678]
[1765556532766,0.001,89923.0,89922.0,0.11672678]
[1765556532997,0.01111852,89940.0,89931.0,0.01111963]
[1765556533215,0.44462672,89964.0,89930.0,0.01111975]
[1765556533216,0.02939314,89961.0,89955.0,0.01111666]
[1765556533432,0.00208747,89974.0,89972.0,0.22229137]
[1765556533645,0.00208747,89974.0,89971.0,0.23340651]
[1765556533860,0.00208747,89974.0,89971.0,0.01111469]
[1765556534073,0.00208747,89974.0,89972.0,0.22229137]
[1765556534286,0.00208747,89974.0,89971.0,0.01111469]
[1765556534528,0.00208747,89974.0,89965.0,0.22230849]
[1765556534529,0.01111531,89966.0,89961.0,0.01111592]
[1765556534762,0.01111555,89964.0,89957.0,0.01111642]
[1765556534992,0.23344198,89959.0,89956.0,0.01784]
[1765556535226,0.01111629,89958.0,89953.0,0.22233833]
[1765556535428,0.00161286,89964.0,89961.0,0.01111592]
[1765556535641,0.23343448,89961.0,89956.0,0.01111654]
[1765556535849,0.23343448,89961.0,89950.0,0.01111728]
[1765556535850,0.01111654,89956.0,89950.0,0.01111728]
[1765556536058,0.01111654,89956.0,89951.0,0.01111716]
[1765556536266,0.01111617,89959.0,89956.0,0.002]
[1765556536484,0.01111629,89958.0,89956.0,0.002]
[1765556536690,0.23344365,89958.0,89956.0,0.002]
[1765556537132,0.05426532,89959.0,89947.0,0.01111765]
[1765556537133,0.23345643,89953.0,89947.0,0.01111765]
[1765556537338,0.01111716,89951.0,89948.0,0.01111753]
[1765556537546,0.01111716,89951.0,89945.0,0.0111179]
[1765556537753,0.01111741,89949.0,89945.0,0.0111179]
[1765556537961,0.001,89958.0,89953.0,0.23345355]
[1765556538170,0.001,89958.0,89955.0,0.04851]
[1765556538376,0.001,89958.0,89956.0,0.22233091]
[1765556538584,0.001,89958.0,89957.0,0.04851]
[1765556538794,0.001,89958.0,89957.0,0.162908]
[1765556539065,0.001,89958.0,89957.0,0.32259808]
[1765556539260,0.01023383,89986.0,89973.0,0.2222889]
[1765556539463,0.02134605,89991.0,89973.0,0.2707989]
[1765556539678,0.02939314,89994.0,89973.0,0.39202729]
[1765556539888,0.23335587,89992.0,89973.0,0.39202729]
[1765556540107,0.2333784,89983.0,89973.0,0.2707989]
[1765556540317,0.22227063,89981.0,89971.0,0.23340692]
[1765556540497,0.04314915,89984.0,89972.0,0.22229137]
[1765556540498,0.0111137,89979.0,89972.0,0.22229137]
[1765556540740,0.01111395,89977.0,89972.0,0.22229137]
[1765556540976,0.01111382,89978.0,89972.0,0.22229137]
[1765556541420,0.01023383,89980.0,89973.0,0.002]
[1765556541647,0.01023383,89983.0,89973.0,0.11808]
[1765556541861,0.01023383,89997.0,89973.0,0.161268]
[1765556542089,0.3018116,89996.0,89973.0,0.161268]
[1765556542316,0.01023383,89995.0,89973.0,0.16809839]
[1765556542539,0.01023383,90001.0,89973.0,0.20928639]
[1765556542750,0.23332613,90003.0,89973.0,0.25567552]
[1765556542969,0.01111148,89997.0,89973.0,0.25767552]
[1765556543228,0.01111321,89983.0,89973.0,0.002]
[1765556543431,0.00408858,89974.0,89939.0,0.05317457]
[1765556543638,0.01111531,89966.0,89950.0,0.57845614]
[1765556543859,0.22231871,89961.0,89956.0,0.23344677]
[1765556544075,0.01111654,89956.0,89952.0,0.01111704]
[1765556544518,0.01111654,89956.0,89944.0,0.22235818]
[1765556544519,0.22234821,89949.0,89943.0,0.01111815]
[1765556544728,0.01111753,89948.0,89944.0,0.01111802]
[1765556544933,0.01111728,89950.0,89945.0,0.0111179]
[1765556545140,0.23348379,89942.0,89939.0,0.03657]
[1765556545351,0.23348379,89942.0,89937.0,0.01111889]
[1765556545352,0.01111827,89942.0,89938.0,0.01111877]
[1765556545568,0.01111827,89942.0,89933.0,0.01111938]
[1765556545569,0.22237046,89940.0,89933.0,0.01111938]
[1765556545823,0.23349548,89938.0,89932.0,0.02939951]
[1765556546022,0.01111889,89937.0,89934.0,0.01111926]
[1765556546227,0.01111889,89937.0,89929.0,0.23351617]
[1765556546228,0.01111914,89935.0,89928.0,0.01112]
[1765556546475,0.23350679,89934.0,89928.0,0.01112]
[1765556546679,0.01111938,89933.0,89928.0,0.01112]
[1765556546887,0.01111926,89934.0,89933.0,0.001]
[1765556547158,0.00161286,89937.0,89934.0,0.01111926]
[1765556547159,0.01273175,89937.0,89934.0,0.01111926]
[1765556547588,0.00161286,89937.0,89934.0,0.01111926]
[1765556548008,0.00161286,89937.0,89932.0,0.01211951]
[1765556548009,0.01111901,89936.0,89932.0,0.001]
[1765556548217,0.01111914,89935.0,89926.0,0.01828]
[1765556548436,0.23350456,89934.0,89926.0,0.01828]
[1765556548647,0.23350539,89934.0,89927.0,0.22240261]
[1765556548857,0.23351132,89932.0,89926.0,0.01828]
[1765556549065,0.01111988,89929.0,89923.0,0.23353174]
[1765556549270,0.01111901,89936.0,89928.0,0.01112]
[1765556549483,0.01111938,89933.0,89927.0,0.01112013]
[1765556549705,0.01111938,89933.0,89926.0,0.01212025]
[1765556549706,0.01111975,89930.0,89926.0,0.01212025]
[1765556549916,0.2223853,89934.0,89926.0,0.01212025]
[1765556549917,0.01111914,89935.0,89930.0,0.01111975]
[1765556550130,0.01111951,89932.0,89929.0,0.01111988]
[1765556550344,0.01111951,89932.0,89926.0,0.22340419]
[1765556550345,0.04314915,89927.0,89926.0,0.001]
[1765556550758,0.26555176,89927.0,89926.0,0.001]
[1765556550993,0.38033176,89927.0,89926.0,0.001]
[1765556551206,0.01111963,89931.0,89912.0,0.01136219]
[1765556551207,0.22238294,89935.0,89928.0,0.01112]
[1765556551413,0.01111963,89931.0,89928.0,0.00011678]
[1765556551635,0.12470915,89929.0,89928.0,0.00011678]
[1765556551834,0.22239519,89930.0,89928.0,0.00011678]
[1765556552297,0.01111963,89931.0,89928.0,0.00011678]
[1765556552501,0.23351403,89931.0,89928.0,0.00011678]
[1765556552711,0.01111963,89931.0,89928.0,0.00011678]
[1765556552919,0.03624,89929.0,89928.0,0.00011678]
[1765556553128,0.07938915,89929.0,89928.0,0.00011678]
[1765556553342,0.12470915,89929.0,89928.0,0.00011678]
[1765556553575,1.19416915,89929.0,89928.0,0.00011678]
[1765556553784,1.48486915,89929.0,89928.0,0.00011678]
[1765556554017,1.49511014,89929.0,89928.0,0.00011678]
[1765556554525,1.48486915,89929.0,89928.0,0.00011678]
[1765556554958,1.49510315,89929.0,89928.0,0.00011678]
[1765556555171,1.54512154,89929.0,89928.0,0.00011678]
[1765556555376,1.55628639,89913.0,89890.0,0.0002]
[1765556555583,1.68902276,89913.0,89890.0,0.0113247]
[1765556555792,1.69925413,89913.0,89893.0,0.01112433]
[1765556555999,0.30865637,89913.0,89904.0,0.01112297]
[1765556556206,0.30865637,89913.0,89902.0,0.01112322]
[1765556556415,0.30865637,89913.0,89901.0,0.01112334]
[1765556556623,0.35180552,89913.0,89903.0,0.01112309]
[1765556556833,0.30865637,89913.0,89904.0,0.01112297]
[1765556557038,0.46658552,89913.0,89896.0,0.01112396]
[1765556557230,0.46958552,89913.0,89897.0,0.01112384]
[1765556557372,0.29381637,89913.0,89906.0,0.02771]
[1765556557579,0.00011637,89913.0,89911.0,0.22244078]
[1765556557986,0.00011637,89913.0,89912.0,0.13704697]
[1765556558185,0.00111637,89913.0,89912.0,0.13704697]
[1765556558691,0.00011637,89913.0,89912.0,0.18023497]
[1765556558888,0.00111637,89913.0,89912.0,0.13704697]
[1765556559119,0.02939314,89956.0,89912.0,0.47876536]
[1765556559322,0.00011672,89956.0,89953.0,0.01111691]
[1765556559493,0.01034098,89956.0,89955.0,0.26749338]
[1765556559695,0.00011672,89956.0,89955.0,0.26749338]
[1765556559921,0.00011672,89956.0,89955.0,0.33841338]
[1765556560705,0.00011672,89956.0,89955.0,0.33941338]
[1765556561686,0.00011672,89956.0,89955.0,0.42287352]
[1765556562108,0.00011672,89956.0,89955.0,0.42087352]
[1765556562322,0.00011672,89956.0,89955.0,0.27049338]
[1765556562563,0.00011672,89956.0,89955.0,0.34441338]
[1765556562977,0.00011672,89956.0,89955.0,0.34141338]
[1765556563586,0.00011672,89956.0,89955.0,0.34441338]
[1765556563795,0.00011672,89956.0,89955.0,0.42869232]
[1765556564408,0.00011672,89956.0,89955.0,0.42569232]
[1765556564624,0.00011672,89956.0,89955.0,0.33841338]
[1765556564833,0.00011672,89956.0,89955.0,0.22533338]
[1765556565485,0.00011672,89956.0,89955.0,0.34141338]
[1765556565696,0.00011672,89956.0,89955.0,0.27149338]
[1765556565889,0.00011672,89956.0,89955.0,0.23033338]
[1765556566092,0.00011672,89956.0,89955.0,0.22633338]
[1765556566447,0.00011672,89956.0,89955.0,0.22833338]
[1765556566658,0.00011672,89956.0,89955.0,0.22433338]
[1765556566857,0.00011672,89956.0,89955.0,0.29528552]
[1765556567094,0.00011672,89956.0,89955.0,0.34241338]
[1765556567902,0.00011672,89956.0,89955.0,0.34041338]
[1765556568031,0.00011672,89956.0,89955.0,0.34141338]
[1765556568229,0.00011672,89956.0,89955.0,0.33941338]
[1765556568881,0.00011672,89956.0,89955.0,0.34041338]
[1765556569108,0.00011672,89956.0,89955.0,0.47731071]
[1765556569312,0.03624,90002.0,89973.0,0.2222889]
[1765556569518,0.03624,90002.0,89973.0,0.2674489]
[1765556569519,0.00247637,89974.0,89973.0,0.2674489]
[1765556569717,0.00247637,89974.0,89973.0,0.3383689]
[1765556569935,0.00247637,89974.0,89973.0,0.42244764]
[1765556571142,0.00247637,89974.0,89973.0,0.3384289]
[1765556571580,0.00247637,89974.0,89973.0,0.3404289]
[1765556571704,0.00247637,89974.0,89973.0,0.3384289]
[1765556571914,0.00247637,89974.0,89973.0,0.3414289]
[1765556572126,0.00247637,89974.0,89973.0,0.3444289]
[1765556572330,0.00247637,89974.0,89973.0,0.49212452]
[1765556572537,0.00247637,89974.0,89973.0,0.44893652]
[1765556572751,0.00247637,89974.0,89973.0,0.45293652]
[1765556572952,0.00247637,89974.0,89973.0,0.45093652]
[1765556573365,0.00247637,89974.0,89973.0,0.45493652]
[1765556573570,0.00247637,89974.0,89973.0,0.2734489]
[1765556574003,0.00247637,89974.0,89973.0,0.2714489]
[1765556574325,0.00247637,89974.0,89973.0,0.2754489]
[1765556574910,0.00247637,89974.0,89973.0,0.3464289]
[1765556575325,0.00247637,89974.0,89973.0,0.2302889]
[1765556576107,0.04562552,89974.0,89973.0,0.004]
[1765556576328,0.04723838,89974.0,89973.0,0.004]
[1765556576546,0.04723838,89974.0,89973.0,0.006]
[1765556576771,0.7188511,89974.0,89973.0,0.006]
[1765556577003,0.01111827,89942.0,89938.0,0.01111877]
[1765556577215,0.0111179,89945.0,89938.0,0.01111877]
[1765556577216,0.01111802,89944.0,89941.0,0.01111839]
[1765556577425,0.01111802,89944.0,89940.0,0.01111852]
[1765556577669,0.0111179,89945.0,89940.0,0.01111852]
[1765556577878,0.01111778,89946.0,89942.0,0.23348379]
[1765556578102,0.01111753,89948.0,89944.0,0.01111802]
[1765556578302,0.26549602,89950.0,89946.0,0.01111778]
[1765556578303,0.04314915,89950.0,89946.0,0.01111778]
[1765556578497,0.01111778,89946.0,89942.0,0.00011672]
[1765556578623,0.0111179,89945.0,89942.0,0.00011672]
[1765556579036,0.01273064,89946.0,89943.0,0.01111815]
[1765556579249,0.233476,89945.0,89942.0,0.00011672]
[1765556579454,0.09201915,89943.0,89942.0,0.00011672]
[1765556579664,0.09363201,89943.0,89942.0,0.00011672]
[1765556579880,0.16719201,89943.0,89942.0,0.00011672]
[1765556580083,1.45789201,89943.0,89942.0,0.00011672]
[1765556580961,1.33546201,89943.0,89942.0,0.00011672]
[1765556581163,0.25,89950.0,89942.0,0.00011672]
[1765556581164,0.00208747,89974.0,89968.0,0.01111506]
[1765556581387,0.00208747,89974.0,89973.0,0.62992777]